bitfinex/quotes_ETHUSD_20250827
["timestamp","ask_amount","ask_price","bid_price","bid_amount"]
[1756273662779,7.27289508,4623.4,4623.3,0.001]
[1756273664362,14.35289506,4623.4,4623.3,0.001]
[1756273666531,10.65389506,4623.4,4623.3,0.001]
[1756273666737,10.18919506,4623.4,4623.3,0.001]
[1756273666948,13.88819506,4623.4,4623.3,0.001]
[1756273667260,14.35289506,4623.4,4623.3,0.001]
[1756273669342,10.18919506,4623.4,4623.3,0.001]
[1756273669638,13.88819506,4623.4,4623.3,0.001]
[1756273670436,10.18919506,4623.4,4623.3,0.001]
[1756273670650,13.88819506,4623.4,4623.3,0.001]
[1756273670981,10.18919506,4623.4,4623.3,0.001]
[1756273671291,10.88899998,4623.4,4623.3,0.7727]
[1756273672302,13.05191039,4623.4,4623.3,0.001]
[1756273672602,13.36501039,4623.4,4623.3,0.001]
[1756273673665,10.68271039,4623.4,4623.3,1e-08]
[1756273673863,13.72171039,4623.4,4623.3,1e-08]
[1756273674460,17.72023718,4623.4,4623.3,1e-08]
[1756273675766,14.02123718,4623.4,4623.3,1e-08]
[1756273675963,17.72623718,4623.4,4623.3,1e-08]
[1756273676167,14.02123718,4623.4,4623.3,1e-08]
[1756273676581,17.72623718,4623.4,4623.3,1e-08]
[1756273678627,14.02123718,4623.4,4623.3,1e-08]
[1756273678926,17.72623718,4623.4,4623.3,1e-08]
[1756273681682,17.72223718,4623.4,4623.3,1e-08]
[1756273682315,14.02123718,4623.4,4623.3,1e-08]
[1756273682619,17.72123718,4623.4,4623.3,1e-08]
[1756273683782,17.82923718,4623.4,4623.3,1e-08]
[1756273688112,17.36453718,4623.4,4623.3,1e-08]
[1756273688819,17.79203718,4623.4,4623.3,1e-08]
[1756273689910,14.09203718,4623.4,4623.3,1e-08]
[1756273690110,17.79203718,4623.4,4623.3,1e-08]
[1756273691225,17.36453718,4623.4,4623.3,1e-08]
[1756273691727,17.79203718,4623.4,4623.3,1e-08]
[1756273692825,0.66,4623.3,4622.8,1e-08]
[1756273693140,11.96155019,4622.9,4622.8,1e-08]
[1756273693334,17.63185019,4622.9,4622.8,1e-08]
[1756273693737,18.05935019,4622.9,4622.8,1e-08]
[1756273694109,3.82714434,4622.9,4622.8,0.31170001]
[1756273694314,7.52714434,4622.9,4622.8,0.75880001]
[1756273695529,3.82714434,4622.9,4622.8,0.75880001]
[1756273695694,7.63514434,4622.9,4622.8,0.75880001]
[1756273696837,14.71514432,4622.9,4622.8,0.75880001]
[1756273697336,11.01514432,4622.9,4622.8,0.75880001]
[1756273697513,14.71514432,4622.9,4622.8,0.75880001]
[1756273700604,11.01514432,4622.9,4622.8,0.75880001]
[1756273700804,14.71514432,4622.9,4622.8,0.75880001]
[1756273702525,8.85199998,4622.9,4622.8,0.75880001]
[1756273702733,3.699,4622.9,4622.8,0.75880001]
[1756273703101,3.699,4622.9,4622.8,1.05100937]
[1756273703350,3.699,4622.9,4622.8,0.75880001]
[1756273704042,2.1630209,4623.2,4622.8,0.75880001]
[1756273704218,3.699,4623.1,4622.9,0.4471]
[1756273704735,0.002,4623.4,4623.0,0.3117]
[1756273704943,3.699,4623.3,4623.0,0.3117]
[1756273705261,3.699,4623.3,4623.1,0.4471]
[1756273705417,2.16299969,4623.3,4623.2,0.3117]
[1756273705616,5.86199969,4623.3,4623.2,0.7588]
[1756273707414,5.86199969,4623.3,4623.2,0.3117]
[1756273707942,5.86199969,4623.3,4622.9,0.4518]
[1756273707943,2.16314434,4622.9,4622.8,1e-08]
[1756273708118,5.86214434,4622.9,4622.8,1e-08]
[1756273708324,5.86214434,4622.9,4622.8,0.73990001]
[1756273709762,6.16364434,4622.9,4622.8,1e-08]
[1756273710146,5.86214434,4622.9,4622.8,1e-08]
[1756273711032,5.86214434,4622.9,4622.8,0.28810001]
[1756273711549,5.86214434,4622.9,4622.8,0.73990001]
[1756273712414,2.16314434,4622.9,4622.8,0.73990001]
[1756273712614,5.86214434,4622.9,4622.8,0.28810001]
[1756273712940,5.97014434,4622.9,4622.8,0.28810001]
[1756273714748,13.04914432,4622.9,4622.8,0.28810001]
[1756273714949,13.04914432,4622.9,4622.8,0.73990001]
[1756273715350,13.04914432,4622.9,4622.8,1e-08]
[1756273715553,13.35064432,4622.9,4622.8,1e-08]
[1756273716838,15.01464432,4622.9,4622.8,1e-08]
[1756273717222,19.11824432,4622.9,4622.8,1e-08]
[1756273717551,15.42024432,4622.9,4622.8,1e-08]
[1756273717752,19.11824432,4622.9,4622.8,1e-08]
[1756273718457,18.45824432,4622.9,4622.8,1e-08]
[1756273719152,14.76024432,4622.9,4622.8,1e-08]
[1756273719354,18.45824432,4622.9,4622.8,1e-08]
[1756273720322,14.76024432,4622.9,4622.8,1e-08]
[1756273720659,18.45824432,4622.9,4622.8,1e-08]
[1756273721223,14.76024432,4622.9,4622.8,1e-08]
[1756273721423,18.45824432,4622.9,4622.8,1e-08]
[1756273724231,18.46024432,4622.9,4622.8,1e-08]
[1756273726333,18.54699932,4622.9,4622.8,1e-08]
[1756273726534,2.16333153,4622.5,4622.4,1e-08]
[1756273726774,12.12408068,4622.5,4622.4,1e-08]
[1756273726936,2.27133153,4622.5,4622.4,0.28810001]
[1756273727141,5.96933153,4622.5,4622.4,0.73990001]
[1756273730333,2.27133153,4622.5,4622.4,0.73990001]
[1756273730538,5.96933153,4622.5,4622.4,0.73990001]
[1756273730842,0.108,4622.5,4622.4,0.73990001]
[1756273731161,5.96933153,4622.5,4622.4,0.73990001]
[1756273731336,5.96933153,4622.5,4622.4,0.28810001]
[1756273732574,0.108,4622.5,4622.4,0.73990001]
[1756273732778,3.805,4622.5,4622.4,0.73990001]
[1756273733075,3.805,4622.5,4622.4,1.03034154]
[1756273733374,3.805,4622.5,4622.4,0.73990001]
[1756273733860,0.108,4622.5,4622.4,0.73990001]
[1756273734176,3.805,4622.5,4622.4,0.73990001]
[1756273735078,0.108,4622.5,4622.4,0.73990001]
[1756273735238,3.805,4622.5,4622.4,0.73990001]
[1756273737072,5.98467483,4622.5,4622.4,0.28810001]
[1756273737272,5.96833153,4622.5,4622.4,0.28810001]
[1756273737660,5.96833153,4622.5,4622.4,1e-08]
[1756273738181,5.96833153,4622.5,4622.4,0.29230001]
[1756273740881,5.96833153,4622.5,4622.4,1e-08]
[1756273741176,2.27133153,4622.5,4622.4,1e-08]
[1756273741382,5.96733153,4622.5,4622.4,1e-08]
[1756273741754,6.27553153,4622.5,4622.4,1e-08]
[1756273743246,6.70373153,4622.5,4622.4,1e-08]
[1756273743849,2.27133153,4622.5,4622.4,1e-08]
[1756273744077,5.96733153,4622.5,4622.4,0.75120001]
[1756273744278,0.108,4622.5,4622.4,0.75120001]
[1756273744489,8.74599998,4622.9,4622.4,0.75120001]
[1756273744490,0.108,4622.6,4622.4,0.75120001]
[1756273744656,1.666,4622.9,4622.5,0.48053331]
[1756273744857,0.002,4622.9,4622.8,0.2923]
[1756273745092,0.002,4622.9,4622.8,1.04264382]
[1756273745296,0.002,4622.9,4622.8,3.20583495]
[1756273745993,0.002,4622.9,4622.8,3.22746686]
[1756273746899,0.002,4622.9,4622.8,3.20583495]
[1756273747211,0.002,4622.9,4622.8,6.99546686]
[1756273747364,0.002,4622.9,4622.8,6.97383495]
[1756273747562,0.002,4622.9,4622.8,7.08183495]
[1756273749987,0.002,4622.9,4622.8,7.13453072]
[1756273750183,0.002,4623.4,4622.8,7.13453072]
[1756273750184,0.002,4623.4,4622.9,5.82314434]
[1756273750426,0.002,4623.4,4623.3,11.96136304]
[1756273750712,0.002,4623.4,4623.3,12.36166304]
[1756273750866,0.002,4623.4,4623.3,12.82056304]
[1756273751496,0.002,4623.4,4623.3,6.68215719]
[1756273751702,0.002,4623.4,4623.3,12.82056304]
[1756273751900,0.002,4623.4,4623.3,14.96276732]
[1756273755752,0.002,4623.4,4623.3,15.04944732]
[1756273758317,1e-08,4623.4,4623.3,18.74244732]
[1756273761910,1e-08,4623.4,4623.3,18.28354732]
[1756273762120,1e-08,4623.4,4623.3,18.08244732]
[1756273762307,1e-08,4623.4,4623.3,17.99576732]
[1756273762816,1e-08,4623.4,4623.3,18.65576732]
[1756273765939,1e-08,4623.4,4623.3,18.19686732]
[1756273766337,1e-08,4623.4,4623.3,18.65576732]
[1756273768005,0.02,4623.8,4623.6,2.82281685]
[1756273768342,0.02,4623.8,4623.6,9.53644501]
[1756273768526,0.02,4623.8,4623.6,9.92701685]
[1756273768928,0.02,4623.8,4623.7,5.82277007]
[1756273769132,0.02,4623.8,4623.7,6.28617007]
[1756273769332,0.02,4623.8,4623.7,8.84201377]
[1756273769862,0.002,4624.2,4624.1,5.82258298]
[1756273770015,1e-08,4624.2,4624.1,17.31498883]
[1756273770215,1e-08,4624.2,4624.1,18.19058883]
[1756273770447,1e-08,4624.2,4624.1,20.4421877]
[1756273770656,1e-08,4624.2,4624.1,19.9787877]
[1756273770941,0.31420001,4624.2,4624.1,19.6745877]
[1756273771120,0.31420001,4624.2,4624.1,13.53618185]
[1756273772722,1e-08,4624.2,4624.1,13.53618185]
[1756273773446,1e-08,4624.2,4624.1,13.84038185]
[1756273773945,1e-08,4624.2,4624.1,13.53618185]
[1756273774625,1e-08,4624.2,4624.1,19.9787877]
[1756273775228,1e-08,4624.2,4624.1,19.6745877]
[1756273775624,0.31420001,4624.2,4624.1,19.6745877]
[1756273776355,1e-08,4624.2,4624.1,19.6745877]
[1756273777040,1e-08,4624.2,4624.1,19.9787877]
[1756273777236,1e-08,4624.2,4624.1,20.4421877]
[1756273780118,1e-08,4624.2,4624.1,19.9787877]
[1756273780353,1e-08,4624.2,4624.1,19.6745877]
[1756273780763,1e-08,4624.2,4624.1,20.4421877]
[1756273781120,1e-08,4624.2,4624.1,19.9787877]
[1756273781522,0.31420001,4624.2,4624.1,19.6745877]
[1756273781724,0.77490001,4624.2,4624.1,12.87618185]
[1756273781961,0.77490001,4624.2,4624.1,10.62458298]
[1756273786073,0.77490001,4624.2,4624.1,3.108]
[1756273786272,0.77490001,4624.2,4624.1,8.95958298]
[1756273786572,0.77490001,4624.2,4624.1,8.85158298]
[1756273787069,0.77490001,4624.2,4624.1,6.689]
[1756273787371,0.77490001,4624.2,4624.1,8.85158298]
[1756273788683,0.77490001,4624.2,4624.1,6.689]
[1756273789088,0.77490001,4624.2,4624.1,8.85158298]
[1756273792058,0.77490001,4624.2,4623.9,0.108]
[1756273792273,0.29393935,4624.1,4623.6,0.001]
[1756273792479,0.108,4624.1,4623.6,2.16381283]
[1756273792692,0.4607,4624.0,4623.7,3.688]
[1756273792986,0.3142,4623.8,4623.7,3.688]
[1756273793191,0.7749,4623.8,4623.7,3.688]
[1756273796292,0.7749,4623.8,4623.7,5.85077007]
[1756273797166,0.7749,4623.8,4623.7,3.688]
[1756273800844,0.7749,4623.8,4623.6,5.85181068]
[1756273800967,0.3142,4623.8,4623.7,2.16277007]
[1756273801174,1e-08,4624.2,4623.7,4.67440471]
[1756273801397,1e-08,4624.2,4623.8,4.1583]
[1756273801584,1e-08,4624.2,4623.9,2.27067652]
[1756273801884,1e-08,4624.2,4623.9,0.108]
[1756273802093,1e-08,4624.2,4623.6,0.001]
[1756273802094,0.2935,4624.0,4623.6,0.001]
[1756273802298,0.4415,4623.9,4623.6,0.001]
[1756273802495,0.74205484,4623.9,4623.6,0.001]
[1756273802698,2.56427007,4623.7,4623.6,0.001]
[1756273803213,3.00577007,4623.7,4623.6,0.001]
[1756273805306,3.02211337,4623.7,4623.6,0.001]
[1756273806614,3.00577007,4623.7,4623.6,0.001]
[1756273807020,6.69277007,4623.7,4623.6,0.001]
[1756273807622,3.00577007,4623.7,4623.6,0.001]
[1756273807825,6.69277007,4623.7,4623.6,0.001]
[1756273808020,3.00577007,4623.7,4623.6,0.001]
[1756273808343,6.69277007,4623.7,4623.6,0.001]
[1756273809421,13.77277005,4623.7,4623.6,0.001]
[1756273811796,10.08577005,4623.7,4623.6,0.001]
[1756273811996,13.77277005,4623.7,4623.6,0.001]
[1756273813339,14.1112575,4623.7,4623.6,0.001]
[1756273813696,14.1979935,4623.7,4623.6,0.001]
[1756273813896,17.1979935,4623.7,4623.6,0.001]
[1756273814200,2.16300397,4623.2,4623.1,0.001]
[1756273814395,7.63734727,4623.2,4623.1,0.001]
[1756273814604,8.35600397,4623.2,4623.1,0.001]
[1756273814800,8.44274797,4623.2,4623.1,0.001]
[1756273815035,4.75574797,4623.2,4623.1,0.001]
[1756273815235,8.44274797,4623.2,4623.1,0.001]
[1756273817107,18.52274795,4623.2,4623.1,0.001]
[1756273818526,25.3211538,4623.2,4623.1,1e-08]
[1756273819319,2.16333153,4622.5,4622.4,1e-08]
[1756273819651,5.86667483,4622.5,4622.4,1e-08]
[1756273819932,6.69333153,4622.5,4622.4,1e-08]
[1756273820136,6.78008953,4622.5,4622.4,1e-08]
[1756273820951,6.33858953,4622.5,4622.4,1e-08]
[1756273821302,6.78008953,4622.5,4622.4,1e-08]
[1756273823008,7.1186629,4622.5,4622.4,1e-08]
[1756273824142,14.19866288,4622.5,4622.4,1e-08]
[1756273825101,10.51166288,4622.5,4622.4,1e-08]
[1756273825336,14.19866288,4622.5,4622.4,1e-08]
[1756273825939,17.19866288,4622.5,4622.4,1e-08]
[1756273826114,13.51166288,4622.5,4622.4,1e-08]
[1756273826322,17.19866288,4622.5,4622.4,1e-08]
[1756273829454,16.75716288,4622.5,4622.4,1e-08]
[1756273830450,16.75616288,4622.5,4622.4,1e-08]
[1756273831861,16.46266288,4622.5,4622.4,1e-08]
[1756273832358,16.76636288,4622.5,4622.4,1e-08]
[1756273833161,13.52526288,4622.5,4622.4,1e-08]
[1756273833460,2.16356555,4622.0,4621.9,0.001]
[1756273833756,7.63790885,4622.0,4621.9,0.001]
[1756273833960,8.37016555,4622.0,4621.9,0.001]
[1756273834665,8.45693255,4622.0,4621.9,0.001]
[1756273836067,11.45693255,4622.0,4621.9,0.001]
[1756273838773,18.53693253,4622.0,4621.9,0.001]
[1756273839340,18.09203253,4622.0,4621.9,0.001]
[1756273843570,18.53693253,4622.0,4621.9,0.001]
[1756273843772,2.82361236,4621.9,4621.8,1e-08]
[1756273843972,2.83995566,4621.9,4621.8,1e-08]
[1756273844287,3.58855566,4621.9,4621.8,1e-08]
[1756273844490,4.04565566,4621.9,4621.8,1e-08]
[1756273845275,4.02931236,4621.9,4621.8,1e-08]
[1756273845775,7.73065566,4621.9,4621.8,1e-08]
[1756273845948,7.71431236,4621.9,4621.8,1e-08]
[1756273846143,3.58441236,4621.9,4621.8,1e-08]
[1756273846344,7.73065566,4621.9,4621.8,1e-08]
[1756273846541,7.71431236,4621.9,4621.8,1e-08]
[1756273846745,3.28071236,4621.9,4621.8,0.31260001]
[1756273846957,6.30571236,4621.9,4621.8,0.31260001]
[1756273847166,2.62071236,4621.9,4621.8,0.31260001]
[1756273847369,6.32205566,4621.9,4621.8,1e-08]
[1756273847564,6.30571236,4621.9,4621.8,1e-08]
[1756273847774,13.38571234,4621.9,4621.8,1e-08]
[1756273847980,9.70071234,4621.9,4621.8,1e-08]
[1756273848281,13.38571234,4621.9,4621.8,1e-08]
[1756273848854,9.70071234,4621.9,4621.8,1e-08]
[1756273849058,13.38571234,4621.9,4621.8,1e-08]
[1756273849852,13.38471234,4621.9,4621.8,0.31260001]
[1756273850081,13.38471234,4621.9,4621.8,0.76870001]
[1756273850851,9.70071234,4621.9,4621.8,0.31260001]
[1756273851482,13.38471234,4621.9,4621.8,0.31260001]
[1756273852562,13.38471234,4621.9,4621.8,0.76870001]
[1756273853785,13.68841234,4621.9,4621.8,1e-08]
[1756273854984,10.00441234,4621.9,4621.8,1e-08]
[1756273855289,13.68841234,4621.9,4621.8,1e-08]
[1756273855650,14.13331234,4621.9,4621.8,1e-08]
[1756273857056,10.44931234,4621.9,4621.8,1e-08]
[1756273857290,14.13231234,4621.9,4621.8,1e-08]
[1756273857596,16.38371234,4621.9,4621.8,0.31560001]
[1756273857770,9.35161234,4621.9,4621.8,0.74500001]
[1756273857969,13.03461234,4621.9,4621.8,0.74500001]
[1756273858290,13.03461234,4621.9,4621.8,0.31560001]
[1756273858889,13.03461234,4621.9,4621.8,0.74500001]
[1756273860791,13.03661234,4621.9,4621.8,0.74500001]
[1756273861562,5.95661236,4621.9,4621.8,0.74500001]
[1756273862290,5.95661236,4621.9,4621.8,0.31560001]
[1756273862456,5.95661236,4621.9,4621.8,1e-08]
[1756273862659,6.26921236,4621.9,4621.8,1e-08]
[1756273862979,10.17411236,4621.9,4621.8,1e-08]
[1756273864196,10.83411236,4621.9,4621.8,1e-08]
[1756273864760,10.83311236,4621.9,4621.8,1e-08]
[1756273866892,10.35861236,4621.9,4621.8,1e-08]
[1756273867767,6.01661236,4621.9,4621.8,1e-08]
[1756273868114,5.59601236,4621.9,4621.8,0.31560001]
[1756273868261,5.59601236,4621.9,4621.8,0.74500001]
[1756273868262,5.95561236,4621.9,4621.8,0.74500001]
[1756273868893,2.27361236,4621.9,4621.8,0.74500001]
[1756273869105,5.95561236,4621.9,4621.8,0.74500001]
[1756273869277,2.27361236,4621.9,4621.8,0.74500001]
[1756273869478,5.95561236,4621.9,4621.8,0.74500001]
[1756273870007,2.27361236,4621.9,4621.8,0.74500001]
[1756273870307,5.95561236,4621.9,4621.8,0.74500001]
[1756273871604,5.95461236,4621.9,4621.8,0.74500001]
[1756273872302,3.791,4621.9,4621.8,0.74500001]
[1756273872506,5.95461236,4621.9,4621.8,0.74500001]
[1756273872704,2.27361236,4621.9,4621.8,0.74500001]
[1756273872914,5.97095566,4621.9,4621.8,0.31560001]
[1756273873074,6.87732213,4621.9,4621.8,1e-08]
[1756273873443,7.78222213,4621.9,4621.8,1e-08]
[1756273874608,3.62672213,4621.9,4621.8,1e-08]
[1756273874787,6.99512213,4621.9,4621.8,1e-08]
[1756273875114,7.30772213,4621.9,4621.8,1e-08]
[1756273875906,6.99512213,4621.9,4621.8,1e-08]
[1756273876475,7.30772213,4621.9,4621.8,1e-08]
[1756273877515,3.62672213,4621.9,4621.8,1e-08]
[1756273878011,7.30672213,4621.9,4621.8,1e-08]
[1756273878702,6.99412213,4621.9,4621.8,1e-08]
[1756273880314,14.07412211,4621.9,4621.8,1e-08]
[1756273880535,14.07412211,4621.9,4621.8,0.31560001]
[1756273880889,14.07412211,4621.9,4621.8,1e-08]
[1756273881298,14.38672211,4621.9,4621.8,1e-08]
[1756273881518,14.07412211,4621.9,4621.8,1e-08]
[1756273882724,14.07412211,4621.9,4621.8,0.31560001]
[1756273883808,10.39412211,4621.9,4621.8,0.31560001]
[1756273884119,14.38572211,4621.9,4621.8,1e-08]
[1756273884290,13.64272211,4621.9,4621.8,0.31560001]
[1756273884489,13.95532211,4621.9,4621.8,1e-08]
[1756273885226,14.04208511,4621.9,4621.8,1e-08]
[1756273888834,10.05048511,4621.9,4621.8,1e-08]
[1756273889131,14.01468511,4621.9,4621.8,1e-08]
[1756273889339,20.60199096,4621.9,4621.8,1e-08]
[1756273890424,24.26199096,4621.9,4621.8,1e-08]
[1756273890735,24.5369554,4621.9,4621.8,1e-08]
[1756273891940,24.26199096,4621.9,4621.8,1e-08]
[1756273895043,2.16403375,4621.0,4620.9,0.001]
[1756273895346,7.52237705,4621.0,4620.9,0.001]
[1756273895560,10.79123375,4621.0,4620.9,1e-08]
[1756273895848,10.87801975,4621.0,4620.9,1e-08]
[1756273896046,11.48812952,4621.0,4620.9,1e-08]
[1756273896212,11.59612952,4621.0,4620.9,1e-08]
[1756273896612,11.59612952,4621.0,4618.8,0.02]
[1756273896613,2.16454901,4619.9,4618.8,0.02]
[1756273896846,7.61454901,4619.9,4618.8,0.02]
[1756273897150,7.61454901,4619.9,4619.8,0.7854]
[1756273897342,7.98249371,4619.9,4619.8,0.3179]
[1756273897944,7.98249371,4619.9,4619.8,0.7854]
[1756273898152,4.30449371,4619.9,4619.8,0.02]
[1756273898355,7.99883701,4619.9,4619.8,0.7854]
[1756273898521,7.98249371,4619.9,4619.8,0.7854]
[1756273898722,7.98149371,4619.9,4619.8,0.7854]
[1756273898917,7.98149371,4619.9,4619.8,0.3179]
[1756273899318,7.98149371,4619.9,4619.8,0.7854]
[1756273899518,7.61354901,4619.9,4619.8,0.7854]
[1756273900053,7.61454901,4619.9,4619.8,0.7854]
[1756273900650,3.93654901,4619.9,4619.8,0.7854]
[1756273901223,7.61354901,4619.9,4619.8,0.7854]
[1756273901664,7.61354901,4619.9,4619.8,0.3179]
[1756273902154,7.61354901,4619.9,4619.8,0.7854]
[1756273902918,7.61454901,4619.9,4619.8,0.7854]
[1756273903767,7.61354901,4619.9,4619.8,0.7854]
[1756273903973,14.69354899,4619.9,4619.8,0.7854]
[1756273904156,11.01654899,4619.9,4619.8,0.7854]
[1756273904459,14.69354899,4619.9,4619.8,0.7854]
[1756273907132,14.69354899,4619.9,4619.8,0.3179]
[1756273910088,14.69354899,4619.9,4619.8,0.7854]
[1756273910391,11.01654899,4619.9,4619.8,0.7854]
[1756273910600,14.69354899,4619.9,4619.8,0.7854]
[1756273913200,8.85199998,4619.9,4619.8,0.7854]
[1756273913377,12.52799998,4619.9,4619.8,0.7854]
[1756273913950,12.52799998,4619.9,4619.8,1.08257698]
[1756273915848,8.85199998,4619.9,4619.8,1.08257698]
[1756273916053,5.34,4619.9,4619.8,1.08257698]
[1756273916249,0.108,4620.1,4619.8,0.7854]
[1756273916454,3.676,4620.1,4620.0,2.16450216]
[1756273916765,0.108,4620.4,4620.3,2.16436162]
[1756273916969,3.784,4620.4,4620.3,0.7654]
[1756273918304,3.783,4620.4,4620.3,0.7654]
[1756273918515,3.783,4620.4,4620.3,3.22274075]
[1756273918708,0.108,4620.4,4620.3,3.22274075]
[1756273920307,0.108,4620.4,4620.3,3.24438436]
[1756273920694,3.675,4620.9,4620.8,2.16412742]
[1756273920894,3.675,4620.9,4620.8,0.7475394]
[1756273921098,3.675,4620.9,4620.8,0.3147]
[1756273921287,4.0850433,4620.9,4620.3,0.108]
[1756273921477,0.108,4620.6,4619.8,0.02]
[1756273921675,2.55824901,4619.9,4619.8,0.02]
[1756273921995,7.89824901,4619.9,4619.8,0.02]
[1756273922198,5.7337,4619.9,4619.8,0.02]
[1756273923485,7.89824901,4619.9,4619.8,0.02]
[1756273923693,5.447,4619.9,4619.8,0.3347]
[1756273924286,1.773,4619.9,4619.8,0.3347]
[1756273924588,7.89724901,4619.9,4619.8,0.02]
[1756273926401,8.32674901,4619.9,4619.8,0.02]
[1756273927024,7.89724901,4619.9,4619.8,0.02]
[1756273927437,5.447,4619.9,4619.8,0.3347]
[1756273927609,1.773,4619.9,4619.8,0.7746]
[1756273927794,5.447,4619.9,4619.8,0.7746]
[1756273928939,1.773,4619.9,4619.8,0.7746]
[1756273929109,5.447,4619.9,4619.8,0.7746]
[1756273929915,1.773,4619.9,4619.8,0.7746]
[1756273930131,5.446,4619.9,4619.8,0.7746]
[1756273930706,5.446,4619.9,4619.8,0.3347]
[1756273931338,5.446,4619.9,4619.8,0.7746]
[1756273931705,1.773,4619.9,4619.8,0.7756]
[1756273931904,5.446,4619.9,4619.8,0.7756]
[1756273932497,1.773,4619.9,4619.8,0.7756]
[1756273932702,5.446,4619.9,4619.8,0.7756]
[1756273933636,1.773,4619.9,4619.8,0.7756]
[1756273933811,5.338,4619.9,4619.8,0.7756]
[1756273934136,5.338,4619.9,4619.8,0.3357]
[1756273934354,6.1683,4619.9,4619.8,0.021]
[1756273934506,8.76234901,4619.9,4619.8,0.021]
[1756273934714,8.33284901,4619.9,4619.8,0.021]
[1756273935010,8.76234901,4619.9,4619.8,0.021]
[1756273936930,1.665,4619.9,4619.8,0.3357]
[1756273937131,7.78824901,4619.9,4619.8,0.021]
[1756273937956,3.673,4619.9,4619.8,0.7756]
[1756273938159,3.673,4619.9,4619.8,1.06962888]
[1756273938364,3.673,4619.9,4619.8,0.7756]
[1756273939163,3.673,4619.9,4619.8,2.94019586]
[1756273939361,1.665,4620.3,4619.8,2.94019586]
[1756273939546,3.673,4620.2,4619.8,2.50029586]
[1756273939742,3.672,4620.1,4619.9,0.4399]
[1756273940037,3.672,4620.1,4620.0,0.7546]
[1756273940243,3.672,4620.1,4620.0,0.3147]
[1756273940545,6.12215531,4620.1,4619.8,0.021]
[1756273940747,3.9577,4620.1,4619.8,0.021]
[1756273941327,0.56227,4620.0,4619.8,0.021]
[1756273941552,3.672,4619.9,4619.8,0.021]
[1756273942051,3.672,4619.9,4619.8,0.3357]
[1756273942253,3.8293619,4620.3,4619.8,0.3357]
[1756273942449,3.672,4620.2,4619.8,0.3357]
[1756273942648,3.672,4620.2,4619.8,0.7756]
[1756273942854,3.672,4620.1,4619.8,0.7756]
[1756273944733,3.672,4620.1,4619.8,0.3357]
[1756273945072,0.108,4619.9,4619.8,0.3357]
[1756273945226,3.78,4619.9,4619.8,0.3357]
[1756273945429,0.108,4619.9,4619.8,0.3357]
[1756273945661,3.672,4619.9,4619.8,0.7756]
[1756273947620,0.108,4620.1,4619.8,0.7756]
[1756273947823,2.45024901,4619.9,4619.8,0.021]
[1756273948026,6.57104901,4619.9,4619.8,0.021]
[1756273949623,2.45024901,4619.9,4619.8,0.021]
[1756273949927,6.67904901,4619.9,4619.8,0.021]
[1756273952746,3.00804901,4619.9,4619.8,0.021]
[1756273952943,6.22924901,4619.9,4619.8,0.021]
[1756273953636,3.779,4619.9,4619.8,0.021]
[1756273954153,3.779,4619.9,4619.8,0.307]
[1756273955560,0.002,4620.8,4619.8,2.47159586]
[1756273955760,0.108,4619.9,4619.8,0.7406]
[1756273956265,0.108,4619.9,4619.8,0.307]
[1756273956567,0.108,4619.9,4619.8,0.7406]
[1756273958774,3.671,4620.0,4619.8,0.7406]
[1756273958941,0.108,4620.1,4619.8,0.6083259]
[1756273959141,0.002,4620.8,4620.0,2.16450107]
[1756273959375,0.108,4620.5,4620.1,0.02164455]
[1756273959571,3.671,4620.4,4620.1,0.02164455]
[1756273959875,3.671,4620.4,4620.3,0.286]
[1756273960044,3.671,4620.4,4620.3,0.7196]
[1756273960371,3.671,4620.4,4620.3,0.286]
[1756273960874,3.671,4620.4,4619.9,0.4336]
[1756273961276,3.671,4620.4,4620.0,0.4336]
[1756273962373,0.108,4620.5,4620.3,0.286]
[1756273962553,3.671,4620.4,4620.3,0.286]
[1756273962752,3.671,4620.4,4620.3,0.7196]
[1756273962947,3.671,4620.4,4620.3,2.88396162]
[1756273963153,0.002,4620.8,4620.3,1.22444573]
[1756273963376,3.671,4620.7,4620.4,0.4336]
[1756273963579,3.671,4620.7,4620.6,0.286]
[1756273963761,3.671,4620.7,4620.6,0.7196]
[1756273964283,3.671,4620.7,4620.6,0.286]
[1756273964470,0.11,4620.8,4620.6,0.286]
[1756273964672,3.671,4620.7,4620.6,0.286]
[1756273965166,3.671,4620.7,4620.3,0.4336]
[1756273965480,3.671,4620.7,4620.1,0.108]
[1756273966258,3.671,4620.7,4620.1,2.27245309]
[1756273966458,3.671,4620.7,4620.1,2.27243565]
[1756273966654,0.11,4620.8,4620.6,0.286]
[1756273967062,0.002,4620.8,4620.7,2.70577425]
[1756273967290,0.002,4620.8,4620.7,2.99177425]
[1756273969854,0.002,4620.8,4620.7,3.01341599]
[1756273970088,0.002,4620.8,4620.7,3.50954036]
[1756273970585,0.8593,4620.8,4620.1,0.108]
[1756273970786,3.194,4620.7,4620.1,2.27241101]
[1756273971088,3.194,4620.7,4620.1,0.108]
[1756273971294,3.194,4620.7,4620.2,2.16440475]
[1756273971593,3.67,4620.6,4620.2,2.16439603]
[1756273971771,3.67,4620.6,4620.1,2.27245507]
[1756273971976,0.11,4620.8,4620.1,2.27245507]
[1756273972187,3.67,4620.7,4620.1,2.27245507]
[1756273972390,3.67,4620.7,4620.2,2.16439937]
[1756273973487,3.67,4620.7,4620.1,2.2724511]
[1756273973897,3.67,4620.7,4620.6,0.286]
[1756273974197,0.002,4620.8,4620.7,2.16417425]
[1756273974376,0.002,4620.8,4620.7,2.88377425]
[1756273976578,0.002,4620.8,4620.7,2.90541599]
[1756273976775,0.002,4620.8,4620.7,3.50954116]
[1756273978882,0.002,4620.8,4620.7,0.62576691]
[1756273979073,0.002,4620.8,4620.7,0.108]
[1756273980583,3.672,4620.8,4620.7,3.03907425]
[1756273981403,0.002,4620.8,4620.7,0.8749]